[Event "*** Titled Tuesday Blitz"]
[Site "Chess.com"]
[Date "2020.04.07"]
[Round "2"]
[White "nickmatta"]
[Black "Alohamora11"]
[Result "0-1"]
[WhiteElo "2225"]
[BlackElo "2471"]
[TimeControl "180+1"]
[EndTime "13:19:43 PDT"]
[Termination "Alohamora11 won on time"]

1. d4 {[%clk 0:03:00.7]} 1... Nf6 {[%clk 0:02:38.1]} 2. c4 {[%clk 0:03:00.5]}
2... c5 {[%clk 0:02:38.6]} 3. d5 {[%clk 0:03:00.6]} 3... e6 {[%clk 0:02:39.2]}
4. Nc3 {[%clk 0:03:00.8]} 4... exd5 {[%clk 0:02:40.1]} 5. cxd5 {[%clk
0:03:01.7]} 5... d6 {[%clk 0:02:41]} 6. Nf3 {[%clk 0:03:02.6]} 6... g6 {[%clk
0:02:41.5]} 7. Bf4 {[%clk 0:03:03.3]} 7... a6 {[%clk 0:02:41.3]} 8. a4 {[%clk
0:03:02.9]} 8... Bg7 {[%clk 0:02:41.4]} 9. h3 {[%clk 0:03:02.9]} 9... O-O {[%clk
0:02:41.8]} 10. e3 {[%clk 0:03:03.6]} 10... Ne8 {[%clk 0:02:42.4]} 11. Be2
{[%clk 0:03:03.5]} 11... Nd7 {[%clk 0:02:43.3]} 12. O-O {[%clk 0:03:03.2]} 12...
Rb8 {[%clk 0:02:43.8]} 13. Nd2 {[%clk 0:03:00]} 13... Ne5 {[%clk 0:02:44.1]} 14.
Bh2 {[%clk 0:02:51.5]} 14... f5 {[%clk 0:02:44.1]} 15. Re1 {[%clk 0:02:36.5]}
15... g5 {[%clk 0:02:44]} 16. Nc4 {[%clk 0:02:26.8]} 16... Nxc4 {[%clk 0:02:40]}
17. Bxc4 {[%clk 0:02:26.8]} 17... f4 {[%clk 0:02:33.4]} 18. exf4 {[%clk
0:02:23.6]} 18... gxf4 {[%clk 0:02:34.3]} 19. Qf3 {[%clk 0:02:09.2]} 19... Qg5
{[%clk 0:02:20.6]} 20. Bxf4 {[%clk 0:02:03]} 20... Qg6 {[%clk 0:02:21]} 21. Qg3
{[%clk 0:01:58.1]} 21... Bxh3 {[%clk 0:02:04.5]} 22. Qxh3 {[%clk 0:01:30.6]}
22... Rxf4 {[%clk 0:02:02.4]} 23. Bd3 {[%clk 0:01:30.4]} 23... Qh6 {[%clk
0:01:58.1]} 24. Qxh6 {[%clk 0:01:19.6]} 24... Bxh6 {[%clk 0:01:59]} 25. Re7
{[%clk 0:01:20.3]} 25... Nf6 {[%clk 0:01:49.6]} 26. Rae1 {[%clk 0:01:17.8]}
26... Bf8 {[%clk 0:01:44.6]} 27. Rc7 {[%clk 0:01:10.3]} 27... Rb4 {[%clk
0:01:43.5]} 28. Re6 {[%clk 0:01:03.2]} 28... Rd4 {[%clk 0:01:11.4]} 29. Rxf6
{[%clk 0:00:36.3]} 29... Rxd3 {[%clk 0:01:11.3]} 30. Rff7 {[%clk 0:00:36.9]}
30... Rd4 {[%clk 0:00:40.1]} 31. f3 {[%clk 0:00:28.4]} 31... b5 {[%clk
0:00:36.6]} 32. axb5 {[%clk 0:00:26.7]} 32... axb5 {[%clk 0:00:37.5]} 33. Ne4
{[%clk 0:00:27.4]} 33... Rxe4 {[%clk 0:00:35.4]} 34. fxe4 {[%clk 0:00:28.3]}
34... Re8 {[%clk 0:00:32.7]} 35. Rf4 {[%clk 0:00:09.5]} 35... Kh8 {[%clk
0:00:27.5]} 36. Kf2 {[%clk 0:00:07.6]} 36... Bg7 {[%clk 0:00:27.4]} 37. Rff7
{[%clk 0:00:04.5]} 37... Bd4+ {[%clk 0:00:24.6]} 38. Kf3 {[%clk 0:00:04.4]}
38... Bxb2 {[%clk 0:00:19.2]} 39. Rxh7+ {[%clk 0:00:04.9]} 39... Kg8 {[%clk
0:00:19.9]} 40. Rhe7 {[%clk 0:00:05.5]} 40... Rf8+ {[%clk 0:00:18.2]} 41. Kg4
{[%clk 0:00:06.2]} 41... c4 {[%clk 0:00:17.5]} 42. Red7 {[%clk 0:00:02.7]} 42...
Be5 {[%clk 0:00:17.4]} 43. Re7 {[%clk 0:00:01.8]} 43... Rb8 {[%clk 0:00:10.5]}
0-1

[Event "*** Titled Tuesday Blitz"]
[Site "Chess.com"]
[Date "2020.04.07"]
[Round "2"]
[White "twitchTriniCupid"]
[Black "BillCoe"]
[Result "1-0"]
[WhiteElo "2406"]
[BlackElo "2019"]
[TimeControl "180+1"]
[EndTime "13:19:43 PDT"]
[Termination "twitchTriniCupid won on time"]

1. d4 {[%clk 0:03:00.9]} 1... d5 {[%clk 0:02:58.7]} 2. c4 {[%clk 0:02:59.8]}
2... e6 {[%clk 0:02:58.8]} 3. Nc3 {[%clk 0:03:00]} 3... Nf6 {[%clk 0:02:58.8]}
4. Nf3 {[%clk 0:02:59.6]} 4... Be7 {[%clk 0:02:57.1]} 5. Qc2 {[%clk 0:02:58.4]}
5... O-O {[%clk 0:02:56.5]} 6. Bg5 {[%clk 0:02:56.4]} 6... h6 {[%clk 0:02:55.4]}
7. Bf4 {[%clk 0:02:55.9]} 7... b6 {[%clk 0:02:52.1]} 8. e3 {[%clk 0:02:54.3]}
8... Bb7 {[%clk 0:02:51.1]} 9. Be2 {[%clk 0:02:53]} 9... dxc4 {[%clk 0:02:49.6]}
10. Bxc4 {[%clk 0:02:52.8]} 10... c5 {[%clk 0:02:48.6]} 11. O-O {[%clk
0:02:49.2]} 11... cxd4 {[%clk 0:02:48.3]} 12. Nxd4 {[%clk 0:02:47.3]} 12... Nc6
{[%clk 0:02:47.8]} 13. Nf3 {[%clk 0:02:41.7]} 13... Rc8 {[%clk 0:02:38.9]} 14.
Rfd1 {[%clk 0:02:38.1]} 14... Qe8 {[%clk 0:02:39.1]} 15. Qe2 {[%clk 0:02:34.3]}
15... Nh5 {[%clk 0:02:35.7]} 16. Bd6 {[%clk 0:02:32.4]} 16... Bxd6 {[%clk
0:02:27.3]} 17. Rxd6 {[%clk 0:02:32.2]} 17... Na5 {[%clk 0:02:21.1]} 18. Ba6
{[%clk 0:02:23.9]} 18... Qe7 {[%clk 0:02:09.5]} 19. Rad1 {[%clk 0:02:21.3]}
19... Nf6 {[%clk 0:02:09.1]} 20. Ne5 {[%clk 0:02:02.3]} 20... Rc7 {[%clk
0:01:55]} 21. h3 {[%clk 0:01:51.6]} 21... Rfc8 {[%clk 0:01:38.2]} 22. Bxb7
{[%clk 0:01:30.7]} 22... Nxb7 {[%clk 0:01:34.5]} 23. R6d4 {[%clk 0:01:30.2]}
23... Nd8 {[%clk 0:01:18.6]} 24. Qa6 {[%clk 0:01:16.1]} 24... Nc6 {[%clk
0:01:10.1]} 25. Nxc6 {[%clk 0:01:11.9]} 25... Rxc6 {[%clk 0:01:08]} 26. Nb5
{[%clk 0:01:09.9]} 26... Ra8 {[%clk 0:00:52.9]} 27. Qa4 {[%clk 0:00:48.9]} 27...
a6 {[%clk 0:00:45.8]} 28. Nd6 {[%clk 0:00:41.1]} 28... Rc7 {[%clk 0:00:38.5]}
29. Ne4 {[%clk 0:00:30]} 29... b5 {[%clk 0:00:33.7]} 30. Nxf6+ {[%clk
0:00:28.6]} 30... Qxf6 {[%clk 0:00:29.5]} 31. Qa5 {[%clk 0:00:26.4]} 31... Rcc8
{[%clk 0:00:25.3]} 32. Qb6 {[%clk 0:00:23.6]} 32... e5 {[%clk 0:00:22.5]} 33.
Qxf6 {[%clk 0:00:17.6]} 33... gxf6 {[%clk 0:00:20.7]} 34. Rd6 {[%clk 0:00:17.8]}
34... Kg7 {[%clk 0:00:19.4]} 35. R1d2 {[%clk 0:00:16.3]} 35... Rc1+ {[%clk
0:00:15.3]} 36. Kh2 {[%clk 0:00:16.4]} 36... Ra1 {[%clk 0:00:14.8]} 37. b3
{[%clk 0:00:16.5]} 37... a5 {[%clk 0:00:13]} 38. Rb6 {[%clk 0:00:16]} 38... b4
{[%clk 0:00:12.4]} 39. Rb7 {[%clk 0:00:16.5]} 39... a4 {[%clk 0:00:09.1]} 40.
Rxb4 {[%clk 0:00:15.8]} 40... axb3 {[%clk 0:00:07.9]} 41. axb3 {[%clk
0:00:16.3]} 41... R8a2 {[%clk 0:00:06.4]} 42. Rxa2 {[%clk 0:00:12.6]} 42... Rxa2
{[%clk 0:00:07.3]} 43. Kg3 {[%clk 0:00:13.1]} 43... h5 {[%clk 0:00:06.3]} 44. h4
{[%clk 0:00:12.9]} 44... Kg6 {[%clk 0:00:05.5]} 45. Kf3 {[%clk 0:00:13]} 45...
Rb2 {[%clk 0:00:04.8]} 46. Rb6 {[%clk 0:00:12.8]} 46... Kf5 {[%clk 0:00:03.8]}
47. g3 {[%clk 0:00:11.5]} 47... e4+ {[%clk 0:00:02.7]} 48. Kg2 {[%clk
0:00:11.3]} 48... Kg6 {[%clk 0:00:01.8]} 49. b4 {[%clk 0:00:10.6]} 1-0

[Event "*** Titled Tuesday Blitz"]
[Site "Chess.com"]
[Date "2020.04.07"]
[Round "2"]
[White "MFBerna"]
[Black "Pavlov_Sergey"]
[Result "1-0"]
[WhiteElo "2320"]
[BlackElo "2537"]
[TimeControl "180+1"]
[EndTime "13:19:45 PDT"]
[Termination "MFBerna won by resignation"]

1. d4 {[%clk 0:03:00.9]} 1... Nf6 {[%clk 0:02:59]} 2. c4 {[%clk 0:02:59]} 2...
e6 {[%clk 0:02:58.4]} 3. Nc3 {[%clk 0:02:59]} 3... Bb4 {[%clk 0:02:57.3]} 4. Qc2
{[%clk 0:02:58.5]} 4... b6 {[%clk 0:02:56.1]} 5. Nf3 {[%clk 0:02:57.8]} 5... Bb7
{[%clk 0:02:55.1]} 6. Bg5 {[%clk 0:02:54.1]} 6... h6 {[%clk 0:02:48]} 7. Bxf6
{[%clk 0:02:53.4]} 7... Qxf6 {[%clk 0:02:47.8]} 8. a3 {[%clk 0:02:50.4]} 8...
Bxc3+ {[%clk 0:02:44]} 9. Qxc3 {[%clk 0:02:51.3]} 9... Bxf3 {[%clk 0:02:33.4]}
10. Qxf3 {[%clk 0:02:41.8]} 10... Qxf3 {[%clk 0:02:33.2]} 11. gxf3 {[%clk
0:02:42.7]} 11... Nc6 {[%clk 0:02:32.3]} 12. e3 {[%clk 0:02:42.5]} 12... e5
{[%clk 0:02:30.1]} 13. dxe5 {[%clk 0:02:32]} 13... Nxe5 {[%clk 0:02:28.7]} 14.
f4 {[%clk 0:02:32]} 14... Nc6 {[%clk 0:02:25.9]} 15. Bg2 {[%clk 0:02:27]} 15...
Ke7 {[%clk 0:02:25.4]} 16. O-O-O {[%clk 0:02:23.6]} 16... Rad8 {[%clk
0:02:25.1]} 17. Kc2 {[%clk 0:02:07]} 17... Nb8 {[%clk 0:02:12.1]} 18. Rhg1
{[%clk 0:02:03.4]} 18... d6 {[%clk 0:02:05.6]} 19. Be4 {[%clk 0:02:01]} 19...
Kf6 {[%clk 0:02:05]} 20. Rd5 {[%clk 0:01:51.9]} 20... g6 {[%clk 0:02:04.3]} 21.
h4 {[%clk 0:01:38]} 21... Rhg8 {[%clk 0:01:49.6]} 22. h5 {[%clk 0:01:28.8]}
22... c6 {[%clk 0:01:48.9]} 23. Rdd1 {[%clk 0:01:19]} 23... g5 {[%clk
0:01:47.2]} 24. fxg5+ {[%clk 0:00:59.8]} 24... Rxg5 {[%clk 0:01:46.6]} 25. Rxg5
{[%clk 0:00:56.7]} 25... hxg5 {[%clk 0:01:46.6]} 26. h6 {[%clk 0:00:51.3]} 26...
Ke5 {[%clk 0:01:39.9]} 27. Bg2 {[%clk 0:00:26.8]} 27... Rh8 {[%clk 0:01:32.4]}
28. Rh1 {[%clk 0:00:26]} 28... c5 {[%clk 0:01:15]} 29. Bd5 {[%clk 0:00:24.7]}
29... f5 {[%clk 0:01:14.8]} 30. h7 {[%clk 0:00:16.3]} 30... Nd7 {[%clk 0:01:15]}
31. Rh6 {[%clk 0:00:16.4]} 31... Nf8 {[%clk 0:01:04.8]} 32. Bg8 {[%clk
0:00:14.7]} 32... g4 {[%clk 0:01:02.2]} 33. Kd3 {[%clk 0:00:14]} 33... a6 {[%clk
0:00:56.5]} 34. a4 {[%clk 0:00:13.1]} 34... a5 {[%clk 0:00:55.7]} 35. b3 {[%clk
0:00:13.1]} 35... f4 {[%clk 0:00:52.4]} 36. exf4+ {[%clk 0:00:14]} 36... Kf5
{[%clk 0:00:52.5]} 37. Rxd6 {[%clk 0:00:13]} 37... Ng6 {[%clk 0:00:49]} 38. Rxb6
{[%clk 0:00:09.3]} 38... Nxf4+ {[%clk 0:00:48.3]} 39. Ke3 {[%clk 0:00:08.7]}
39... Ng2+ {[%clk 0:00:48.1]} 40. Kd2 {[%clk 0:00:08.6]} 40... Nh4 {[%clk
0:00:42.7]} 41. Rb5 {[%clk 0:00:08.7]} 41... Nf3+ {[%clk 0:00:43.1]} 42. Ke3
{[%clk 0:00:09.1]} 42... Ng5 {[%clk 0:00:41.1]} 43. Rxc5+ {[%clk 0:00:10]} 43...
Kg6 {[%clk 0:00:41.4]} 44. Rxa5 {[%clk 0:00:10.1]} 44... Nxh7 {[%clk 0:00:41.4]}
45. Bxh7+ {[%clk 0:00:08.5]} 45... Rxh7 {[%clk 0:00:41.6]} 46. Rb5 {[%clk
0:00:08.8]} 46... Rf7 {[%clk 0:00:39.5]} 47. a5 {[%clk 0:00:07.8]} 47... Rf3+
{[%clk 0:00:40.1]} 48. Ke2 {[%clk 0:00:08.1]} 48... Rc3 {[%clk 0:00:37.9]} 49.
a6 {[%clk 0:00:08]} 49... Rc1 {[%clk 0:00:38.5]} 50. b4 {[%clk 0:00:06.6]} 50...
Ra1 {[%clk 0:00:38.4]} 51. Ra5 {[%clk 0:00:06.8]} 1-0

[Event "*** Titled Tuesday Blitz"]
[Site "Chess.com"]
[Date "2020.04.07"]
[Round "2"]
[White "rpragchess"]
[Black "FMAntonio"]
[Result "0-1"]
[WhiteElo "2790"]
[BlackElo "2548"]
[TimeControl "180+1"]
[EndTime "13:19:46 PDT"]
[Termination "FMAntonio won by resignation"]

1. e4 {[%clk 0:03:00.9]} 1... e5 {[%clk 0:02:57]} 2. Nf3 {[%clk 0:03:00.9]} 2...
Nf6 {[%clk 0:02:56.4]} 3. Nxe5 {[%clk 0:02:51.7]} 3... d6 {[%clk 0:02:56.1]} 4.
Nf3 {[%clk 0:02:51.7]} 4... Nxe4 {[%clk 0:02:56.3]} 5. Nc3 {[%clk 0:02:51.2]}
5... Nxc3 {[%clk 0:02:55.6]} 6. dxc3 {[%clk 0:02:52.1]} 6... Be7 {[%clk
0:02:55.5]} 7. Be3 {[%clk 0:02:52.2]} 7... Nc6 {[%clk 0:02:55]} 8. Bd3 {[%clk
0:02:50.5]} 8... Be6 {[%clk 0:02:54.7]} 9. Qd2 {[%clk 0:02:49]} 9... Qd7 {[%clk
0:02:52.4]} 10. O-O-O {[%clk 0:02:46.3]} 10... O-O-O {[%clk 0:02:43.2]} 11. Kb1
{[%clk 0:02:46]} 11... Bf6 {[%clk 0:02:40.9]} 12. h3 {[%clk 0:02:35.1]} 12...
Kb8 {[%clk 0:02:38.7]} 13. Rhe1 {[%clk 0:02:33.5]} 13... h6 {[%clk 0:02:35.7]}
14. Bb5 {[%clk 0:02:29.6]} 14... a6 {[%clk 0:02:33.4]} 15. Ba4 {[%clk
0:02:29.5]} 15... d5 {[%clk 0:02:19.9]} 16. Qe2 {[%clk 0:01:49]} 16... Qd6
{[%clk 0:02:12.7]} 17. Bxc6 {[%clk 0:01:32.6]} 17... Qxc6 {[%clk 0:02:11.3]} 18.
Bd4 {[%clk 0:01:33.3]} 18... Bc8 {[%clk 0:01:37.8]} 19. Ne5 {[%clk 0:01:19.6]}
19... Bxe5 {[%clk 0:01:34.9]} 20. Qxe5 {[%clk 0:01:19.7]} 20... f6 {[%clk
0:01:28.1]} 21. Qg3 {[%clk 0:01:17]} 21... Rhg8 {[%clk 0:01:10.2]} 22. Re7
{[%clk 0:01:07.8]} 22... g5 {[%clk 0:01:00.9]} 23. Rde1 {[%clk 0:01:03.7]} 23...
Bf5 {[%clk 0:00:59.7]} 24. Qe3 {[%clk 0:00:59.2]} 24... Rd7 {[%clk 0:00:43]} 25.
Re8+ {[%clk 0:00:36.1]} 25... Rd8 {[%clk 0:00:42.9]} 26. Re7 {[%clk 0:00:24.1]}
26... Rd7 {[%clk 0:00:42.7]} 27. g4 {[%clk 0:00:23.1]} 27... Rxe7 {[%clk
0:00:37]} 28. Qxe7 {[%clk 0:00:22.5]} 28... Be4 {[%clk 0:00:36.4]} 29. Re3
{[%clk 0:00:16.2]} 29... Re8 {[%clk 0:00:35.2]} 30. Qf7 {[%clk 0:00:11.3]} 30...
Qb5 {[%clk 0:00:19]} 31. b3 {[%clk 0:00:07.7]} 31... Rc8 {[%clk 0:00:16.9]} 32.
f3 {[%clk 0:00:07.1]} 32... Qf1+ {[%clk 0:00:16.9]} 33. Kb2 {[%clk 0:00:07.5]}
33... Bxf3 {[%clk 0:00:17.2]} 34. Re8 {[%clk 0:00:05.2]} 34... b6 {[%clk
0:00:11.8]} 35. Re7 {[%clk 0:00:03.2]} 35... Be4 {[%clk 0:00:11.5]} 36. Bxb6
{[%clk 0:00:03.5]} 36... Qf4 {[%clk 0:00:10.6]} 37. Bd4 {[%clk 0:00:02.3]} 37...
Qd6 {[%clk 0:00:10.7]} 38. Re6 {[%clk 0:00:02.1]} 38... Qd8 {[%clk 0:00:10.4]}
39. Rxf6 {[%clk 0:00:02.5]} 39... Qe8 {[%clk 0:00:10]} 40. Qg7 {[%clk
0:00:02.7]} 40... Bxc2 {[%clk 0:00:07.4]} 41. Qxh6 {[%clk 0:00:01.7]} 41... Qe2
{[%clk 0:00:06.9]} 42. Rxa6 {[%clk 0:00:01.9]} 42... Bd3+ {[%clk 0:00:06.6]} 43.
Ka3 {[%clk 0:00:02.2]} 43... Bxa6 {[%clk 0:00:06.8]} 44. Qc6 {[%clk 0:00:02.8]}
44... Qb5 {[%clk 0:00:06.7]} 45. Qf6 {[%clk 0:00:02.4]} 45... Qa5+ {[%clk
0:00:06.8]} 46. Kb2 {[%clk 0:00:02.5]} 46... Re8 {[%clk 0:00:06.6]} 47. Be5
{[%clk 0:00:02.6]} 47... Qb5 {[%clk 0:00:05.4]} 48. a4 {[%clk 0:00:02.1]} 48...
Qe2+ {[%clk 0:00:05.4]} 0-1

[Event "*** Titled Tuesday Blitz"]
[Site "Chess.com"]
[Date "2020.04.07"]
[Round "2"]
[White "IMinTheWings"]
[Black "david_gomez"]
[Result "1-0"]
[WhiteElo "2190"]
[BlackElo "2428"]
[TimeControl "180+1"]
[EndTime "13:19:46 PDT"]
[Termination "IMinTheWings won by checkmate"]

1. c4 {[%clk 0:03:00.9]} 1... Nf6 {[%clk 0:02:57]} 2. Nc3 {[%clk 0:03:01.3]}
2... e6 {[%clk 0:02:56.6]} 3. e4 {[%clk 0:03:01.7]} 3... d5 {[%clk 0:02:57.5]}
4. e5 {[%clk 0:03:01.4]} 4... d4 {[%clk 0:02:57.6]} 5. exf6 {[%clk 0:03:02]}
5... dxc3 {[%clk 0:02:57.6]} 6. bxc3 {[%clk 0:03:02.9]} 6... Qxf6 {[%clk
0:02:53.9]} 7. Nf3 {[%clk 0:03:03.3]} 7... c5 {[%clk 0:02:52.7]} 8. d4 {[%clk
0:03:00.4]} 8... cxd4 {[%clk 0:02:52.7]} 9. cxd4 {[%clk 0:02:51.4]} 9... Bb4+
{[%clk 0:02:49.6]} 10. Bd2 {[%clk 0:02:51.6]} 10... Nc6 {[%clk 0:02:48.8]} 11.
Be2 {[%clk 0:02:15]} 11... O-O {[%clk 0:02:43.5]} 12. O-O {[%clk 0:02:15.1]}
12... Bxd2 {[%clk 0:02:40.6]} 13. Qxd2 {[%clk 0:02:15.4]} 13... Rd8 {[%clk
0:02:41.5]} 14. Rfd1 {[%clk 0:02:15.8]} 14... Bd7 {[%clk 0:02:39.7]} 15. Rab1
{[%clk 0:02:13.6]} 15... b6 {[%clk 0:02:39]} 16. Bd3 {[%clk 0:02:10]} 16... Rac8
{[%clk 0:02:35.8]} 17. Be4 {[%clk 0:02:01.4]} 17... Be8 {[%clk 0:02:25.2]} 18.
Bxc6 {[%clk 0:01:50.6]} 18... Bxc6 {[%clk 0:02:23.8]} 19. Ne5 {[%clk 0:01:51.5]}
19... Be4 {[%clk 0:02:20.9]} 20. Rb3 {[%clk 0:01:41]} 20... Bc6 {[%clk
0:02:18.8]} 21. Rg3 {[%clk 0:01:31.8]} 21... Ba4 {[%clk 0:02:09.8]} 22. Re1
{[%clk 0:01:27.8]} 22... Rc7 {[%clk 0:01:52.2]} 23. Rf3 {[%clk 0:01:24.2]} 23...
Qh4 {[%clk 0:01:49.3]} 24. Rf4 {[%clk 0:01:22.1]} 24... Qh6 {[%clk 0:01:46.3]}
25. Qe3 {[%clk 0:00:52.3]} 25... Be8 {[%clk 0:01:35.6]} 26. h4 {[%clk
0:00:48.1]} 26... Qh5 {[%clk 0:01:24.8]} 27. Qg3 {[%clk 0:00:32.3]} 27... Kh8
{[%clk 0:01:03.4]} 28. Rg4 {[%clk 0:00:30.3]} 28... f6 {[%clk 0:00:43]} 29. Ng6+
{[%clk 0:00:25.6]} 29... Bxg6 {[%clk 0:00:36.3]} 30. Qxc7 {[%clk 0:00:26.5]}
30... Re8 {[%clk 0:00:35.3]} 31. Rg3 {[%clk 0:00:22.5]} 31... Qxh4 {[%clk
0:00:31.1]} 32. Qd7 {[%clk 0:00:23]} 32... Rg8 {[%clk 0:00:18]} 33. Qxe6 {[%clk
0:00:19.1]} 33... Qxd4 {[%clk 0:00:16.5]} 34. Rxg6 {[%clk 0:00:19.5]} 34... Qd2
{[%clk 0:00:13.6]} 35. Rg3 {[%clk 0:00:16.7]} 35... Qxa2 {[%clk 0:00:10.6]} 36.
Rh3 {[%clk 0:00:12.1]} 36... Qa5 {[%clk 0:00:08.4]} 37. Qe4 {[%clk 0:00:12]}
37... h6 {[%clk 0:00:07.4]} 38. Ree3 {[%clk 0:00:10]} 38... Qa1+ {[%clk
0:00:06.9]} 39. Kh2 {[%clk 0:00:10.4]} 39... Qb2 {[%clk 0:00:06.1]} 40. Qg6
{[%clk 0:00:10.2]} 40... Qxf2 {[%clk 0:00:05.1]} 41. Rxh6+ {[%clk 0:00:07.4]}
41... gxh6 {[%clk 0:00:05.2]} 42. Qxh6# {[%clk 0:00:08.3]} 1-0

[Event "*** Titled Tuesday Blitz"]
[Site "Chess.com"]
[Date "2020.04.07"]
[Round "2"]
[White "Khalakhanov"]
[Black "DonBroca"]
[Result "1/2-1/2"]
[WhiteElo "2399"]
[BlackElo "2074"]
[TimeControl "180+1"]
[EndTime "13:19:47 PDT"]
[Termination "Game drawn - insufficient material"]

1. e4 {[%clk 0:03:00.9]} 1... c5 {[%clk 0:03:00.3]} 2. d4 {[%clk 0:03:00.1]}
2... cxd4 {[%clk 0:03:00.1]} 3. c3 {[%clk 0:03:00.7]} 3... Nf6 {[%clk
0:03:00.5]} 4. e5 {[%clk 0:02:59.4]} 4... Nd5 {[%clk 0:03:00.9]} 5. Nf3 {[%clk
0:02:59.9]} 5... Nc6 {[%clk 0:02:55.9]} 6. cxd4 {[%clk 0:03:00]} 6... d6 {[%clk
0:02:55.8]} 7. Bc4 {[%clk 0:02:55.5]} 7... Nb6 {[%clk 0:02:56.2]} 8. Bb3 {[%clk
0:02:54]} 8... dxe5 {[%clk 0:02:55.4]} 9. d5 {[%clk 0:02:54.3]} 9... Na5 {[%clk
0:02:56]} 10. Nc3 {[%clk 0:02:52.6]} 10... f6 {[%clk 0:02:56.6]} 11. O-O {[%clk
0:02:09.5]} 11... g6 {[%clk 0:02:56.9]} 12. Be3 {[%clk 0:02:00.2]} 12... Bg7
{[%clk 0:02:56.9]} 13. Bc5 {[%clk 0:01:54.7]} 13... Bd7 {[%clk 0:01:46.7]} 14.
d6 {[%clk 0:01:40.2]} 14... e6 {[%clk 0:01:44.6]} 15. Re1 {[%clk 0:01:39.6]}
15... Rc8 {[%clk 0:01:44]} 16. Be3 {[%clk 0:01:19.4]} 16... O-O {[%clk
0:01:37.6]} 17. h4 {[%clk 0:01:02.9]} 17... Kh8 {[%clk 0:01:28.8]} 18. h5 {[%clk
0:01:01.3]} 18... g5 {[%clk 0:01:29.3]} 19. Rb1 {[%clk 0:00:56.3]} 19... Nac4
{[%clk 0:01:23.1]} 20. a3 {[%clk 0:00:51.8]} 20... Nxe3 {[%clk 0:01:22.5]} 21.
Rxe3 {[%clk 0:00:51.6]} 21... Nc4 {[%clk 0:01:22]} 22. Bxc4 {[%clk 0:00:51.4]}
22... Rxc4 {[%clk 0:01:22.9]} 23. Nd2 {[%clk 0:00:50.2]} 23... Rc8 {[%clk
0:01:19.6]} 24. Nce4 {[%clk 0:00:46.9]} 24... f5 {[%clk 0:01:13.6]} 25. h6
{[%clk 0:00:43.3]} 25... Bf6 {[%clk 0:01:07.5]} 26. Nxf6 {[%clk 0:00:42.7]}
26... Qxf6 {[%clk 0:01:08.4]} 27. Qh5 {[%clk 0:00:37.6]} 27... Rc6 {[%clk
0:00:49.5]} 28. Nf3 {[%clk 0:00:36.9]} 28... Be8 {[%clk 0:00:15]} 29. Qxg5
{[%clk 0:00:35.8]} 29... Rxd6 {[%clk 0:00:04.9]} 30. Rxe5 {[%clk 0:00:33.5]}
30... Qxg5 {[%clk 0:00:03.1]} 31. Nxg5 {[%clk 0:00:34.4]} 31... Bg6 {[%clk
0:00:01.5]} 32. Rbe1 {[%clk 0:00:33.9]} 32... Re8 {[%clk 0:00:01.3]} 33. Rxe6
{[%clk 0:00:32.1]} 33... Rdxe6 {[%clk 0:00:01.4]} 34. Rxe6 {[%clk 0:00:33]}
34... Rxe6 {[%clk 0:00:01.7]} 35. Nxe6 {[%clk 0:00:32.5]} 35... Kg8 {[%clk
0:00:02.2]} 36. Kh2 {[%clk 0:00:33]} 36... Kf7 {[%clk 0:00:02.5]} 37. Nc5 {[%clk
0:00:33.4]} 37... b6 {[%clk 0:00:02.3]} 38. Nd3 {[%clk 0:00:33]} 38... Kf6
{[%clk 0:00:01.9]} 39. Kg3 {[%clk 0:00:33.1]} 39... Kg5 {[%clk 0:00:02.3]} 40.
Nf4 {[%clk 0:00:32.6]} 40... Be8 {[%clk 0:00:02.8]} 41. Ne6+ {[%clk 0:00:30.2]}
41... Kxh6 {[%clk 0:00:03]} 42. Kf4 {[%clk 0:00:30.2]} 42... Bd7 {[%clk
0:00:02.6]} 43. Nf8 {[%clk 0:00:29.6]} 43... Bc8 {[%clk 0:00:01.4]} 44. f3
{[%clk 0:00:27.2]} 44... Kg7 {[%clk 0:00:01.8]} 45. Nxh7 {[%clk 0:00:16.9]}
45... Kxh7 {[%clk 0:00:02]} 46. g4 {[%clk 0:00:17.8]} 46... fxg4 {[%clk
0:00:02.8]} 47. fxg4 {[%clk 0:00:18.7]} 47... Kg6 {[%clk 0:00:03.5]} 48. Ke5
{[%clk 0:00:18.7]} 48... Be6 {[%clk 0:00:04.2]} 49. g5 {[%clk 0:00:19.4]} 49...
Bd7 {[%clk 0:00:03.9]} 50. Kd6 {[%clk 0:00:20.3]} 50... Ba4 {[%clk 0:00:03.4]}
51. Kc7 {[%clk 0:00:20]} 51... b5 {[%clk 0:00:02.1]} 52. Kb7 {[%clk 0:00:18.9]}
52... Kxg5 {[%clk 0:00:01.8]} 53. Kxa7 {[%clk 0:00:19.1]} 53... Kf4 {[%clk
0:00:02.7]} 54. Kb6 {[%clk 0:00:19]} 54... Ke3 {[%clk 0:00:03.6]} 55. b3 {[%clk
0:00:19.5]} 55... Bxb3 {[%clk 0:00:04]} 56. Kxb5 {[%clk 0:00:19.8]} 56... Bd1
{[%clk 0:00:04.9]} 57. Kb4 {[%clk 0:00:19.8]} 57... Kd2 {[%clk 0:00:04.8]} 58.
a4 {[%clk 0:00:20.7]} 58... Bc2 {[%clk 0:00:05.7]} 59. a5 {[%clk 0:00:21.6]}
59... Bd3 {[%clk 0:00:06.1]} 60. Kc5 {[%clk 0:00:22.5]} 60... Kc3 {[%clk
0:00:06.2]} 61. Kb6 {[%clk 0:00:23.4]} 61... Kb4 {[%clk 0:00:06.6]} 62. a6
{[%clk 0:00:24.3]} 62... Bxa6 {[%clk 0:00:06.2]} 1/2-1/2